fUSD/lending_fUSD_20250301
["ID","MTS","AMOUNT","RATE_DAILY","PERIOD"]
[354975118,1740852640600,-500.0,0.00025202,2]
[354975120,1740852640610,-541.31,0.00025202,2]
[354975123,1740852640620,-1036.14,0.00025202,2]
[354975124,1740852640630,-500.0,0.00025202,2]
[354975127,1740852640640,-500.0,0.00025202,2]
[354975128,1740852640650,-500.0,0.00025202,2]
[354975130,1740852640659,-500.0,0.00025202,2]
[354975132,1740852640669,-610.54680189,0.00025202,2]
[354975134,1740852640678,-337.10432263,0.00025202,2]
[354975136,1740852640688,-691.59,0.00025202,2]
[354975138,1740852640697,-558.22,0.00025202,2]
[354975140,1740852640706,-500.0,0.00025202,2]
[354975142,1740852640715,-744.83,0.00025202,2]
[354975144,1740852640725,-506.96,0.00025202,2]
[354975146,1740852640735,-500.0,0.00025202,2]
[354975148,1740852640745,-647.06,0.00025202,2]
[354975150,1740852640754,-500.0,0.00025202,2]
[354975152,1740852640763,-500.0,0.00025202,2]
[354975154,1740852640772,-880.09,0.00025202,2]
[354975156,1740852640782,-500.0,0.00025202,2]
[354975158,1740852640791,-500.0,0.00025202,2]
[354975160,1740852640801,-500.0,0.00025202,2]
[354975162,1740852640810,-797.02,0.00025202,2]
[354975163,1740852640819,-500.0,0.00025202,2]
[354975165,1740852640829,-1599.35,0.00025202,2]
[354975167,1740852640839,-519.37,0.00025202,2]
[354975169,1740852640849,-1222.93,0.00025202,2]
[354975171,1740852640858,-819.14,0.00025202,2]
[354975173,1740852640867,-500.0,0.00025202,2]
[354975175,1740852640877,-500.0,0.00025202,2]
[354975177,1740852640886,-500.0,0.00025202,2]
[354975179,1740852640896,-1172.39,0.00025202,2]
[354975181,1740852640906,-648.94,0.00025202,2]
[354975183,1740852640916,-500.0,0.00025202,2]
[354975185,1740852640926,-500.0,0.00025202,2]
[354975187,1740852640936,-500.0,0.00025202,2]
[354975189,1740852640945,-824.45,0.00025202,2]
[354975191,1740852640955,-500.0,0.00025202,2]
[354975193,1740852640964,-549.98,0.00025202,2]
[354975195,1740852640973,-601.43,0.00025202,2]
[354975197,1740852640983,-500.0,0.00025202,2]
[354975199,1740852640991,-500.0,0.00025202,2]
[354975201,1740852641001,-1978.56389967,0.00025202,2]
[354975205,1740852641037,-195.92610033,0.00025202,2]
[354975208,1740852641053,-500.0,0.00025202,2]
[354975210,1740852641063,-93.86472607,0.00025202,2]
[354975212,1740852641075,-464.71527393,0.00025202,2]
[354975214,1740852641085,-500.0,0.00025202,2]
[354975216,1740852641095,-1075.23,0.00025202,2]
[354975218,1740852641105,-1071.31,0.00025202,2]
[354975220,1740852641115,-1074.7,0.00025202,2]
[354975222,1740852641124,-500.0,0.00025202,2]
[354975224,1740852641134,-1018.87,0.00025202,2]
[354975226,1740852641144,-500.0,0.00025202,2]
[354975228,1740852641153,-616.11,0.00025202,2]
[354975230,1740852641163,-500.0,0.00025202,2]
[354975232,1740852641173,-500.0,0.00025202,2]
[354975233,1740852641183,-500.0,0.00025202,2]
[354975235,1740852641192,-500.0,0.00025202,2]
[354975237,1740852641202,-500.0,0.00025202,2]
[354975239,1740852641212,-1413.6,0.00025202,2]
[354975241,1740852641222,-500.0,0.00025202,2]
[354975243,1740852641235,-500.0,0.00025202,2]
[354975245,1740852641245,-500.0,0.00025202,2]
[354975247,1740852641255,-500.0,0.00025202,2]
[354975249,1740852641265,-565.48,0.00025202,2]
[354975251,1740852641277,-500.0,0.00025202,2]
[354975253,1740852641287,-1034.46,0.00025202,2]
[354975255,1740852641297,-1314.13,0.00025202,2]
[354975257,1740852641307,-500.0,0.00025202,2]
[354975259,1740852641316,-500.0,0.00025202,2]
[354975261,1740852641327,-500.0,0.00025202,2]
[354975263,1740852641337,-615.02,0.00025202,2]
[354975265,1740852641346,-500.0,0.00025202,2]
[354975267,1740852641358,-705.64,0.00025202,2]
[354975268,1740852641368,-1581.59,0.00025202,2]
[354975270,1740852641378,-1146.01,0.00025202,2]
[354975272,1740852641389,-519.33,0.00025203,2]
[354975274,1740852641399,-983.94,0.00025203,2]
[354975276,1740852641410,-1386.44,0.00025203,2]
[354975279,1740852641420,-2328.91,0.00025203,2]
[354975281,1740852641430,-1064.89,0.00025203,2]
[354975283,1740852641440,-500.0,0.00025203,2]
[354975285,1740852641450,-500.0,0.00025203,2]
[354975287,1740852641460,-1252.682879,0.00025203,2]
[354975289,1740852641470,-1567.68,0.00025203,2]
[354975291,1740852641480,-1543.5,0.00025203,2]
[354975293,1740852641490,-3225.93,0.00025203,2]
[354975295,1740852641500,-500.0,0.00025203,2]
[354975297,1740852641509,-970.66,0.00025203,2]
[354975299,1740852641521,-16867.69,0.00025203,2]
[354975301,1740852641531,-1037.61,0.00025203,2]
[354975303,1740852641540,-500.0,0.00025203,2]
[354975305,1740852641550,-500.0,0.00025203,2]
[354975307,1740852641566,-1041.6,0.00025203,2]
[354975309,1740852641576,-1096.19,0.00025203,2]
[354975311,1740852641585,-2842.57,0.00025203,2]
[354975313,1740852641596,-1070.89,0.00025203,2]
[354975315,1740852641605,-13283.15,0.00025203,2]
[354975317,1740852641615,-500.0,0.00025203,2]
[354975319,1740852641625,-500.0,0.00025203,2]
[354975321,1740852641635,-2362.98,0.00025203,2]
[354975323,1740852641645,-500.0,0.00025203,2]
[354975325,1740852641655,-500.0,0.00025203,2]
[354975327,1740852641665,-500.0,0.00025203,2]
[354975329,1740852641675,-500.0,0.00025203,2]
[354975331,1740852641686,-500.0,0.00025203,2]
[354975333,1740852641695,-3514.21,0.00025203,2]
[354975335,1740852641705,-939.43,0.00025203,2]
[354975337,1740852641715,-1122.87,0.00025203,2]
[354975339,1740852641726,-11895.94,0.00025203,2]
[354975341,1740852641736,-500.0,0.00025203,2]
[354975343,1740852641745,-500.0,0.00025203,2]
[354975345,1740852641755,-500.0,0.00025203,2]
[354975347,1740852641766,-783.95,0.00025203,2]
[354975349,1740852641775,-863.31,0.00025203,2]
[354975351,1740852641784,-500.0,0.00025203,2]
[354975353,1740852641794,-7913.22,0.00025203,2]
[354975355,1740852641803,-500.0,0.00025204,2]
[354975357,1740852641813,-510.51,0.00025204,2]
[354975359,1740852641823,-500.0,0.00025204,2]
[354975361,1740852641832,-500.0,0.00025204,2]
[354975363,1740852641842,-500.0,0.00025204,2]
[354975365,1740852641853,-500.0,0.00025204,2]
[354975367,1740852641863,-500.0,0.00025204,2]
[354975369,1740852641873,-544.06,0.00025204,2]
[354975371,1740852641882,-500.0,0.00025204,2]
[354975373,1740852641892,-500.0,0.00025204,2]
[354975375,1740852641902,-500.0,0.00025204,2]
[354975377,1740852641912,-500.0,0.00025204,2]
[354975379,1740852641922,-649.2,0.00025204,2]
[354975381,1740852641931,-500.0,0.00025204,2]
[354975383,1740852641942,-500.0,0.00025204,2]
[354975385,1740852641951,-500.0,0.00025204,2]
[354975387,1740852641961,-537.46,0.00025204,2]
[354975389,1740852641971,-500.0,0.00025204,2]
[354975391,1740852641981,-500.0,0.00025204,2]
[354975393,1740852641991,-500.0,0.00025204,2]
[354975395,1740852642001,-555.66,0.00025204,2]
[354975397,1740852642011,-500.0,0.00025204,2]
[354975399,1740852642021,-500.0,0.00025204,2]
[354975401,1740852642031,-187.94437483,0.00025204,2]
[354975403,1740852642042,-500.0,0.00025204,2]
[354975405,1740852642052,-500.0,0.00025204,2]
[354975407,1740852642066,-624.07,0.00025204,2]
[354975409,1740852642076,-500.0,0.00025204,2]
[354975411,1740852642086,-500.0,0.00025204,2]
[354975413,1740852642096,-500.0,0.00025204,2]
[354975415,1740852642105,-500.0,0.00025204,2]
[354975417,1740852642116,-1056.65,0.00025204,2]
[354975419,1740852642125,-581.27,0.00025204,2]
[354975421,1740852642135,-317.40161053,0.00025204,2]
[354975423,1740852642145,-655.36,0.00025204,2]
[354975425,1740852642156,-651.03,0.00025204,2]
[354975428,1740852642166,-500.0,0.00025204,2]
[354975430,1740852642176,-891.38,0.00025204,2]
[354975431,1740852642186,-500.0,0.00025204,2]
[354975433,1740852642195,-574.95,0.00025204,2]
[354975435,1740852642205,-500.0,0.00025204,2]
[354975437,1740852642215,-500.0,0.00025204,2]
[354975439,1740852642226,-828.49,0.00025204,2]
[354975441,1740852642240,-854.71,0.00025204,2]
[354975443,1740852642250,-500.0,0.00025204,2]
[354975445,1740852642260,-500.0,0.00025204,2]
[354975447,1740852642271,-500.0,0.00025204,2]
[354975449,1740852642281,-500.0,0.00025204,2]
[354975451,1740852642291,-500.0,0.00025204,2]
[354975453,1740852642301,-664.72,0.00025204,2]
[354975455,1740852642312,-687.97,0.00025204,2]
[354975457,1740852642323,-894.92,0.00025204,2]
[354975459,1740852642333,-500.0,0.00025204,2]
[354975461,1740852642345,-500.0,0.00025204,2]
[354975463,1740852642356,-603.74,0.00025204,2]
[354975465,1740852642366,-500.0,0.00025204,2]
[354975467,1740852642375,-500.0,0.00025204,2]
[354975469,1740852642385,-500.0,0.00025204,2]
[354975471,1740852642395,-500.0,0.00025204,2]
[354975473,1740852642406,-500.0,0.00025204,2]
[354975475,1740852642416,-500.0,0.00025204,2]
[354975477,1740852642426,-500.0,0.00025204,2]
[354975479,1740852642437,-500.0,0.00025204,2]
[354975481,1740852642447,-513.89,0.00025204,2]
[354975483,1740852642456,-558.87,0.00025204,2]
[354975485,1740852642467,-500.0,0.00025204,2]
[354975487,1740852642477,-500.0,0.00025204,2]
[354975489,1740852642487,-500.0,0.00025204,2]
[354975491,1740852642497,-905.08,0.00025204,2]
[354975493,1740852642508,-500.0,0.00025204,2]
[354975495,1740852642518,-497.67329899,0.00025204,2]
[354975497,1740852642528,-533.1,0.00025204,2]
[354975499,1740852642537,-764.71,0.00025204,2]
[354975501,1740852642547,-700.73,0.00025204,2]
[354975503,1740852642557,-701.35,0.00025204,2]
[354975505,1740852642566,-642.27,0.00025204,2]
[354975507,1740852642576,-639.26,0.00025204,2]
[354975509,1740852642586,-500.0,0.00025204,2]
[354975510,1740852642595,-621.34,0.00025204,2]
[354975512,1740852642605,-500.0,0.00025204,2]
[354975514,1740852642615,-500.0,0.00025204,2]
[354975516,1740852642626,-500.0,0.00025204,2]
[354975518,1740852642637,-500.0,0.00025204,2]
[354975520,1740852642647,-776.73,0.00025204,2]
[354975522,1740852642657,-561.08,0.00025204,2]
[354975524,1740852642666,-725.53,0.00025204,2]
[354975526,1740852642676,-553.95,0.00025204,2]
[354975528,1740852642687,-500.0,0.00025204,2]
[354975530,1740852642697,-500.0,0.00025204,2]
[354975532,1740852642706,-691.21,0.00025204,2]
[354975534,1740852642716,-500.0,0.00025204,2]
[354975536,1740852642725,-500.0,0.00025204,2]
[354975538,1740852642735,-669.63,0.00025204,2]
[354975540,1740852642744,-500.0,0.00025204,2]
[354975542,1740852642754,-928.05,0.00025204,2]
[354975544,1740852642764,-561.86,0.00025204,2]
[354975546,1740852642774,-1177.04,0.00025204,2]
[354975548,1740852642783,-626.05,0.00025204,2]
[354975550,1740852642793,-500.0,0.00025204,2]
[354975552,1740852642803,-500.0,0.00025204,2]
[354975554,1740852642812,-670.25,0.00025204,2]
[354975556,1740852642822,-2160.84,0.00025204,2]
[354975557,1740852642833,-1411.06,0.00025204,2]
[354975559,1740852642843,-855.65,0.00025204,2]
[354975561,1740852642852,-1419.99,0.00025204,2]
[354975563,1740852642862,-500.0,0.00025204,2]
[354975565,1740852642873,-730.68,0.00025204,2]
[354975567,1740852642883,-525.37,0.00025204,2]
[354975569,1740852642893,-500.0,0.00025204,2]
[354975570,1740852642902,-710.74,0.00025204,2]
[354975571,1740852642912,-500.0,0.00025204,2]
[354975572,1740852642921,-701.55,0.00025204,2]
[354975573,1740852642931,-500.0,0.00025204,120]
[354975574,1740852642941,-790.96,0.00025204,2]
[354975575,1740852642951,-1073.98,0.00025204,2]
[354975576,1740852642962,-936.62,0.00025204,2]
[354975577,1740852642973,-934.35,0.00025204,2]
[354975578,1740852642982,-500.0,0.00025204,2]
[354975579,1740852642993,-1039.12,0.00025204,2]
[354975580,1740852643002,-595.2,0.00025204,2]
[354975581,1740852643012,-859.99,0.00025204,2]
[354975582,1740852643022,-1035.91,0.00025204,2]
[354975583,1740852643032,-500.0,0.00025204,2]
[354975584,1740852643042,-545.92,0.00025204,2]
[354975586,1740852643051,-429.39340881,0.00025204,2]
[354975588,1740852643061,-500.0,0.00025204,2]
[354975590,1740852643070,-1739.65,0.00025204,2]
[354975592,1740852643080,-500.0,0.00025204,2]
[354975594,1740852643089,-500.0,0.00025204,2]
[354975596,1740852643098,-500.0,0.00025204,2]
[354975598,1740852643108,-500.0,0.00025204,2]
[354975600,1740852643118,-500.0,0.00025204,2]
[354975602,1740852643128,-744.23,0.00025204,2]
[354975604,1740852643137,-500.0,0.00025204,2]
[354975606,1740852643147,-712.35,0.00025204,2]
[354975609,1740852643157,-439.97,0.00025278,2]
[354975611,1740852643166,-150.0,0.00025278,2]
[354975613,1740852643176,-455.39571974,0.00025337,2]
[354975614,1740852643187,-554.51,0.00025342,2]
[354975615,1740852643198,-441.0,0.00025342,2]
[354975616,1740852643208,-441.0,0.00025342,2]
[354975618,1740852643218,-441.0,0.00025342,2]
[354975620,1740852643229,-441.0,0.00025342,2]
[354975622,1740852643241,-441.0,0.00025342,2]
[354975645,1740852643469,-441.0,0.00025342,2]
[354975647,1740852643481,-441.0,0.00025342,2]
[354975649,1740852643492,-441.0,0.00025342,2]
[354975651,1740852643503,-441.0,0.00025342,2]
[354975653,1740852643513,-441.0,0.00025342,2]
[354975655,1740852643526,-441.0,0.00025342,2]
[354975657,1740852643537,-441.0,0.00025342,2]
[354975659,1740852643547,-441.0,0.00025342,2]
[354975661,1740852643558,-161.35,0.00025351,2]
[354975663,1740852643568,-299.63353444,0.00025356,2]
[354975665,1740852643578,-441.0,0.00025441,2]
[354975667,1740852643588,-441.0,0.00025441,2]
[354975669,1740852643598,-441.0,0.00025441,2]
[354975671,1740852643608,-786.06,0.00025475,2]
[354975673,1740852643618,-810.0,0.00025475,2]
[354975675,1740852643628,-613.99,0.00025475,2]
[354975677,1740852643638,-957.96,0.00025475,2]
[354975679,1740852643648,-500.0,0.00025475,2]
[354975681,1740852643658,-550.43,0.00025475,2]
[354975683,1740852643667,-1177.53,0.00025475,2]
[354975686,1740852643678,-347.87659208,0.00025475,2]
[354975688,1740852643688,-925.65,0.00025475,2]
[354975690,1740852643698,-1209.33,0.00025475,2]
[354975691,1740852643707,-810.01,0.00025475,2]
[354975693,1740852643717,-500.0,0.00025475,2]
[354975695,1740852643726,-597.35,0.00025475,2]
[354975697,1740852643736,-763.36,0.00025475,2]
[354975699,1740852643746,-737.35,0.00025475,2]
[354975701,1740852643755,-519.93,0.00025475,2]
[354975703,1740852643765,-2620.35,0.00025475,2]
[354975705,1740852643774,-477.67460119,0.00025475,2]
[354975707,1740852643783,-500.0,0.00025475,2]
[354975709,1740852643794,-500.0,0.00025475,2]
[354975711,1740852643803,-500.0,0.00025475,2]
[354975713,1740852643813,-1031.75,0.00025475,2]
[354975715,1740852643822,-1749.99,0.00025475,2]
[354975717,1740852643832,-1624.188534,0.00025475,2]
[354975720,1740852643842,-5359.18,0.00025475,2]
[354975722,1740852643852,-500.0,0.00025475,2]
[354975724,1740852643862,-500.0,0.00025475,2]
[354975726,1740852643872,-757.71,0.00025475,2]
[354975728,1740852643882,-638.35,0.00025475,2]
[354975730,1740852643891,-755.46,0.00025475,2]
[354975732,1740852643901,-744.29,0.00025475,2]
[354975734,1740852643912,-808.15,0.00025475,2]
[354975736,1740852643922,-500.0,0.00025476,2]
[354975738,1740852643932,-500.0,0.00025476,2]
[354975740,1740852643942,-500.0,0.00025476,2]
[354975742,1740852643952,-500.0,0.00025476,2]
[354975744,1740852643963,-500.0,0.00025476,2]
[354975746,1740852643973,-554.4,0.00025476,2]
[354975748,1740852643983,-500.0,0.00025476,2]
[354975750,1740852643992,-500.0,0.00025476,2]
[354975752,1740852644003,-500.0,0.00025476,2]
[354975754,1740852644012,-653.26,0.00025476,2]
[354975756,1740852644022,-500.0,0.00025476,2]
[354975758,1740852644032,-588.39,0.00025476,2]
[354975760,1740852644043,-937.75,0.00025476,2]
[354975762,1740852644053,-500.0,0.00025476,2]
[354975764,1740852644062,-500.0,0.00025476,2]
[354975766,1740852644072,-219.88421369,0.00025476,2]
[354975768,1740852644082,-500.0,0.00025476,2]
[354975770,1740852644092,-500.0,0.00025476,2]
[354975772,1740852644102,-500.0,0.00025476,2]
[354975774,1740852644113,-500.0,0.00025476,2]
[354975776,1740852644124,-500.0,0.00025476,2]
[354975778,1740852644133,-536.32638172,0.00025476,2]
[354975780,1740852644144,-500.0,0.00025476,2]
[354975782,1740852644154,-500.0,0.00025476,2]
[354975784,1740852644164,-500.0,0.00025476,2]
[354975786,1740852644173,-500.0,0.00025476,2]
[354975788,1740852644183,-500.0,0.00025476,2]
[354975790,1740852644193,-555.85,0.00025476,2]
[354975792,1740852644203,-598.15,0.00025476,2]
[354975794,1740852644213,-500.0,0.00025476,2]
[354975796,1740852644222,-500.0,0.00025476,2]
[354975798,1740852644233,-500.0,0.00025476,2]
[354975800,1740852644243,-748.54,0.00025476,2]
[354975801,1740852644252,-500.0,0.00025476,2]
[354975804,1740852644263,-500.0,0.00025476,2]
[354975805,1740852644273,-500.0,0.00025476,2]
[354975807,1740852644283,-500.0,0.00025476,2]
[354975809,1740852644292,-500.0,0.00025476,2]
[354975811,1740852644301,-500.0,0.00025476,2]
[354975813,1740852644314,-500.0,0.00025476,2]
[354975815,1740852644324,-500.0,0.00025476,2]
[354975817,1740852644335,-500.0,0.00025476,2]
[354975821,1740852644357,-500.0,0.00025476,2]
[354975823,1740852644370,-500.0,0.00025476,2]
[354975825,1740852644380,-500.0,0.00025476,2]
[354975827,1740852644391,-455.65652695,0.00025476,2]
[354975829,1740852644402,-500.0,0.00025476,2]
[354975831,1740852644413,-500.0,0.00025476,2]
[354975833,1740852644425,-350.32618681,0.00025476,2]
[354975835,1740852644436,-500.0,0.00025476,2]
[354975838,1740852644447,-500.0,0.00025476,2]
[354975840,1740852644458,-500.0,0.00025476,2]
[354975842,1740852644469,-229.34,0.00025476,2]
[354975844,1740852644480,-500.0,0.00025476,2]
[354975846,1740852644491,-500.0,0.00025476,2]
[354975848,1740852644501,-851.7,0.00025476,2]
[354975850,1740852644512,-500.0,0.00025476,2]
[354975852,1740852644522,-500.0,0.00025476,2]
[354975854,1740852644532,-500.0,0.00025476,2]
[354975857,1740852644544,-577.84,0.00025476,2]
[354975859,1740852644554,-500.0,0.00025476,2]
[354975861,1740852644565,-516.88,0.00025476,2]
[354975863,1740852644575,-533.1,0.00025476,2]
[354975865,1740852644586,-500.0,0.00025476,2]
[354975867,1740852644598,-500.0,0.00025476,2]
[354975869,1740852644609,-500.0,0.00025476,2]
[354975871,1740852644619,-500.0,0.00025476,2]
[354975873,1740852644630,-656.01,0.00025476,2]
[354975875,1740852644640,-500.0,0.00025476,2]
[354975877,1740852644651,-500.0,0.00025476,2]
[354975879,1740852644662,-714.67,0.00025476,2]
[354975882,1740852644672,-500.0,0.00025476,2]
[354975884,1740852644683,-500.0,0.00025476,2]
[354975886,1740852644694,-510.85,0.00025476,2]
[354975888,1740852644706,-500.0,0.00025476,2]
[354975890,1740852644717,-500.0,0.00025476,2]
[354975892,1740852644729,-981.19,0.00025476,2]
[354975894,1740852644741,-949.87,0.00025476,2]
[354975896,1740852644756,-500.0,0.00025476,2]
[354975898,1740852644769,-500.0,0.00025476,2]
[354975900,1740852644780,-167.9,0.00025476,2]
[354975902,1740852644792,-500.0,0.00025476,2]
[354975904,1740852644802,-500.0,0.00025476,2]
[354975906,1740852644814,-500.0,0.00025476,2]
[354975908,1740852644824,-169.22179128,0.00025476,2]
[354975910,1740852644835,-500.0,0.00025476,2]
[354975912,1740852644849,-500.0,0.00025476,2]
[354975915,1740852644866,-553.85,0.00025476,2]
[354975917,1740852644879,-500.0,0.00025476,2]
[354975919,1740852644891,-500.0,0.00025476,2]
[354975921,1740852644902,-541.31,0.00025476,2]
[354975923,1740852644913,-1036.14,0.00025476,2]
[354975926,1740852644935,-500.0,0.00025476,2]
[354975927,1740852644946,-500.0,0.00025476,2]
[354975930,1740852644957,-500.0,0.00025476,2]
[354975932,1740852644968,-500.0,0.00025476,2]
[354975934,1740852644978,-691.59,0.00025476,2]
[354975936,1740852644990,-558.22,0.00025476,2]
[354975938,1740852644999,-500.0,0.00025476,2]
[354975940,1740852645010,-744.83,0.00025476,2]
[354975942,1740852645021,-506.96,0.00025476,2]
[354975944,1740852645032,-500.0,0.00025476,2]
[354975946,1740852645042,-647.06,0.00025476,2]
[354975948,1740852645053,-231.64720875,0.00025476,2]
[354975950,1740852645064,-500.0,0.00025476,2]
[354975952,1740852645075,-880.09,0.00025476,2]
[354975954,1740852645085,-500.0,0.00025476,2]
[354975956,1740852645097,-500.0,0.00025476,2]
[354975958,1740852645107,-582.65559721,0.00025476,2]
[354975993,1740852645448,-214.36440279,0.00025476,2]
[354975995,1740852645458,-500.0,0.00025476,2]
[354975997,1740852645468,-317.07622914,0.00025476,2]
[354976000,1740852645488,-934.11142703,0.00025476,2]
[354976003,1740852645509,-348.16234383,0.00025476,2]
[354976005,1740852645519,-519.37,0.00025476,2]
[354976007,1740852645528,-1222.93,0.00025476,2]
[354976009,1740852645538,-819.14,0.00025476,2]
[354976011,1740852645548,-500.0,0.00025476,2]
[354976013,1740852645558,-500.0,0.00025476,2]
[354976015,1740852645568,-500.0,0.00025476,2]
[354976017,1740852645578,-1172.39,0.00025476,2]
[354976020,1740852645591,-405.50597023,0.00025476,2]
[354976022,1740852645604,-243.43402977,0.00025476,2]
[354976024,1740852645615,-500.0,0.00025476,2]
[354976026,1740852645624,-500.0,0.00025476,2]
[354976028,1740852645634,-500.0,0.00025476,2]
[354976030,1740852645644,-824.45,0.00025476,2]
[354976031,1740852645653,-500.0,0.00025476,2]
[354976032,1740852645663,-549.98,0.00025476,2]
[354976033,1740852645673,-601.43,0.00025476,2]
[354976034,1740852645682,-500.0,0.00025476,2]
[354976035,1740852645692,-500.0,0.00025476,2]
[354976036,1740852645701,-2174.49,0.00025476,2]
[354976037,1740852645711,-500.0,0.00025476,2]
[354976038,1740852645720,-558.58,0.00025476,2]
[354976040,1740852645730,-500.0,0.00025476,2]
[354976042,1740852645739,-1075.23,0.00025476,2]
[354976044,1740852645749,-1071.31,0.00025476,2]
[354976046,1740852645758,-1074.7,0.00025476,2]
[354976048,1740852645768,-500.0,0.00025476,2]
[354976050,1740852645777,-1018.87,0.00025476,2]
[354976052,1740852645786,-500.0,0.00025476,2]
[354976054,1740852645800,-616.11,0.00025476,2]
[354976056,1740852645810,-500.0,0.00025476,2]
[354976059,1740852645819,-500.0,0.00025476,2]
[354976061,1740852645829,-500.0,0.00025476,2]
[354976063,1740852645839,-500.0,0.00025476,2]
[354976065,1740852645849,-500.0,0.00025476,2]
[354976067,1740852645859,-1413.6,0.00025476,2]
[354976069,1740852645868,-500.0,0.00025476,2]
[354976071,1740852645878,-500.0,0.00025476,2]
[354976073,1740852645887,-500.0,0.00025476,2]
[354976075,1740852645896,-500.0,0.00025476,2]
[354976077,1740852645906,-565.48,0.00025476,2]
[354976079,1740852645916,-500.0,0.00025476,2]
[354976089,1740852646003,-1034.46,0.00025476,2]
[354976091,1740852646013,-1314.13,0.00025476,2]
[354976093,1740852646023,-500.0,0.00025476,2]
[354976095,1740852646033,-500.0,0.00025476,2]
[354976097,1740852646042,-500.0,0.00025476,2]
[354976099,1740852646051,-615.02,0.00025476,2]
[354976101,1740852646061,-500.0,0.00025476,2]
[354976103,1740852646071,-705.64,0.00025476,2]
[354976105,1740852646082,-169.98187007,0.00025476,2]
[354976107,1740852646092,-500.0,0.00025476,2]
[354976109,1740852646101,-385.07004704,0.00025476,2]
[354976111,1740852646110,-1581.59,0.00025476,2]
[354976113,1740852646119,-1146.01,0.00025476,2]
[354976115,1740852646128,-519.33,0.00025477,2]
[354976117,1740852646137,-983.94,0.00025477,2]
[354976119,1740852646147,-1386.44,0.00025477,2]
[354976121,1740852646156,-2328.91,0.00025477,2]
[354976123,1740852646165,-1064.89,0.00025477,2]
[354976125,1740852646175,-500.0,0.00025477,2]
[354976127,1740852646185,-500.0,0.00025477,2]
[354976129,1740852646195,-1252.682879,0.00025477,2]
[354976131,1740852646204,-1567.68,0.00025477,2]
[354976133,1740852646214,-1543.5,0.00025477,2]
[354976135,1740852646224,-3225.93,0.00025477,2]
[354976137,1740852646236,-500.0,0.00025477,2]
[354976139,1740852646246,-970.66,0.00025477,2]
[354976141,1740852646256,-16867.69,0.00025477,2]
[354976143,1740852646266,-1037.61,0.00025477,2]
[354976146,1740852646277,-500.0,0.00025477,2]
[354976148,1740852646288,-500.0,0.00025477,2]
[354976149,1740852646297,-500.0,0.00025477,2]
[354976151,1740852646306,-1041.6,0.00025477,2]
[354976153,1740852646317,-1096.19,0.00025477,2]
[354976155,1740852646327,-2842.57,0.00025477,2]
[354976157,1740852646337,-1070.89,0.00025477,2]
[354976159,1740852646347,-3055.9344438,0.00025477,2]
[354976183,1740852646570,-433.06753325,0.00025477,2]
[354976186,1740852646586,-3278.76496843,0.00025477,2]